[Event "Titled Tuesday Blitz March 21 Late 2023"]
[White "Jovic, Stanoje"]
[Black "Winkels, Marcel"]
[WhiteFideId "905020"]
[BlackFideId "1003887"]
[WhiteElo "2236"]
[BlackElo "1900"]
[Result "1-0"]
[Round "02"]
[TimeControl "180+2"]
[Date "2023.03.21"]
[WhiteClock "0:00:45"]
[BlackClock "0:00:01"]

1. c4 {[%clk 0:03:00]}  Nf6 {[%clk 0:02:58]} 2. g3 {[%clk 0:03:00]}  d5 {[%clk 0:02:58]} 3. cxd5 {[%clk 0:02:59]}  Nxd5 {[%clk 0:02:58]} 4. Bg2 {[%clk 0:02:59]}  g6 {[%clk 0:02:58]} 5. Nc3 {[%clk 0:02:59]}  Nxc3 {[%clk 0:02:58]} 6. bxc3 {[%clk 0:02:59]}  Bg7 {[%clk 0:02:58]} 7. Rb1 {[%clk 0:02:58]}  Nc6 {[%clk 0:02:41]} 8. Qa4 {[%clk 0:02:52]}  O-O {[%clk 0:02:40]} 9. Nf3 {[%clk 0:02:49]}  Bd7 {[%clk 0:02:35]} 10. Rxb7 {[%clk 0:02:40]}  Ne5 {[%clk 0:02:34]} 11. Qa5 {[%clk 0:02:21]}  Bc6 {[%clk 0:02:13]} 12. Rxa7 {[%clk 0:02:08]}  Bxf3 {[%clk 0:02:05]} 13. Bxf3 {[%clk 0:02:07]}  Nxf3+ {[%clk 0:02:04]} 14. exf3 {[%clk 0:02:07]}  Rxa7 {[%clk 0:01:36]} 15. Qxa7 {[%clk 0:02:06]}  Qd3 {[%clk 0:01:37]} 16. Qe3 {[%clk 0:02:03]}  Qc2 {[%clk 0:01:36]} 17. O-O {[%clk 0:02:01]}  Qxa2 {[%clk 0:01:35]} 18. Qxe7 {[%clk 0:01:56]}  Qd5 {[%clk 0:01:13]} 19. Kg2 {[%clk 0:01:51]}  h5 {[%clk 0:01:11]} 20. Qxc7 {[%clk 0:01:46]}  h4 {[%clk 0:01:11]} 21. Qf4 {[%clk 0:01:43]}  g5 {[%clk 0:01:06]} 22. Qe4 {[%clk 0:01:40]}  Qd7 {[%clk 0:01:00]} 23. g4 {[%clk 0:01:21]}  Re8 {[%clk 0:00:58]} 24. Qf5 {[%clk 0:01:20]}  Qxf5 {[%clk 0:00:27]} 25. gxf5 {[%clk 0:01:20]}  Re5 {[%clk 0:00:27]} 26. d4 {[%clk 0:01:18]}  Rxf5 {[%clk 0:00:27]} 27. h3 {[%clk 0:01:13]}  f6 {[%clk 0:00:24]} 28. f4 {[%clk 0:01:12]}  gxf4 {[%clk 0:00:22]} 29. Kf3 {[%clk 0:01:11]}  Bh6 {[%clk 0:00:22]} 30. Rg1+ {[%clk 0:01:11]}  Kf7 {[%clk 0:00:20]} 31. Rg4 {[%clk 0:01:10]}  Bg5 {[%clk 0:00:17]} 32. c4 {[%clk 0:01:03]}  Ra5 {[%clk 0:00:14]} 33. Bxf4 {[%clk 0:01:00]}  Bxf4 {[%clk 0:00:13]} 34. Rxf4 {[%clk 0:00:57]}  Ra3+ {[%clk 0:00:13]} 35. Kg2 {[%clk 0:00:57]}  Rc3 {[%clk 0:00:11]} 36. c5 {[%clk 0:00:55]}  Kg6 {[%clk 0:00:09]} 37. Rxh4 {[%clk 0:00:54]}  Kg5 {[%clk 0:00:09]} 38. Rh8 {[%clk 0:00:53]}  Rc4 {[%clk 0:00:07]} 39. Rg8+ {[%clk 0:00:50]}  Kf5 {[%clk 0:00:06]} 40. Rd8 {[%clk 0:00:48]}  Kf4 {[%clk 0:00:05]} 41. Rd6 {[%clk 0:00:46]}  f5 {[%clk 0:00:04]} 42. c6 {[%clk 0:00:46]}  Rc3 {[%clk 0:00:03]} 43. d5 {[%clk 0:00:45]}  Ke5 {[%clk 0:00:02]} 44. Rd7 {[%clk 0:00:45]}  Rc5 {[%clk 0:00:01]} 45. c7 {[%clk 0:00:45]} 1-0


[Site "https://www.chess.com"]

[Event "Titled Tuesday Blitz March 21 Late 2023"]
[White "Bullen, Alex"]
[Black "Lorenzo De La Riva, Lazaro"]
[WhiteFideId "1801627"]
[BlackFideId "2268809"]
[WhiteElo "2088"]
[BlackElo "2294"]
[Result "1-0"]
[Round "02"]
[TimeControl "180+2"]
[Date "2023.03.21"]
[WhiteClock "0:01:12"]
[BlackClock "0:01:19"]

1. d4 {[%clk 0:03:00]}  d5 {[%clk 0:02:48]} 2. Nf3 {[%clk 0:03:00]}  Nc6 {[%clk 0:02:47]} 3. e3 {[%clk 0:02:59]}  Bf5 {[%clk 0:02:46]} 4. Bb5 {[%clk 0:02:59]}  e6 {[%clk 0:02:43]} 5. O-O {[%clk 0:02:59]}  Bd6 {[%clk 0:02:42]} 6. c4 {[%clk 0:02:59]}  a6 {[%clk 0:02:41]} 7. Bxc6+ {[%clk 0:02:58]}  bxc6 {[%clk 0:02:40]} 8. c5 {[%clk 0:02:58]}  Be7 {[%clk 0:02:40]} 9. Qa4 {[%clk 0:02:58]}  Nf6 {[%clk 0:02:33]} 10. Qxc6+ {[%clk 0:02:57]}  Kf8 {[%clk 0:02:33]} 11. Nc3 {[%clk 0:02:48]}  h6 {[%clk 0:02:16]} 12. Bd2 {[%clk 0:02:34]}  Rb8 {[%clk 0:02:10]} 13. Qxa6 {[%clk 0:02:23]}  Rxb2 {[%clk 0:02:06]} 14. Na4 {[%clk 0:02:20]}  Rc2 {[%clk 0:01:57]} 15. Rfc1 {[%clk 0:02:12]}  Qa8 {[%clk 0:01:49]} 16. Qxa8+ {[%clk 0:02:02]}  Ne8 {[%clk 0:01:47]} 17. Rxc2 {[%clk 0:02:02]}  Bxc2 {[%clk 0:01:46]} 18. Ne5 {[%clk 0:02:00]}  f6 {[%clk 0:01:45]} 19. Nc6 {[%clk 0:01:49]}  Kf7 {[%clk 0:01:42]} 20. Nxe7 {[%clk 0:01:48]}  Kxe7 {[%clk 0:01:41]} 21. Nc3 {[%clk 0:01:44]}  f5 {[%clk 0:01:39]} 22. Qa3 {[%clk 0:01:44]}  Kf7 {[%clk 0:01:37]} 23. Rc1 {[%clk 0:01:44]}  Bd3 {[%clk 0:01:35]} 24. Nxd5 {[%clk 0:01:36]}  exd5 {[%clk 0:01:32]} 25. Qxd3 {[%clk 0:01:35]}  Ke6 {[%clk 0:01:31]} 26. f3 {[%clk 0:01:32]}  Nf6 {[%clk 0:01:30]} 27. Re1 {[%clk 0:01:29]}  Ra8 {[%clk 0:01:28]} 28. e4 {[%clk 0:01:28]}  fxe4 {[%clk 0:01:27]} 29. fxe4 {[%clk 0:01:28]}  dxe4 {[%clk 0:01:27]} 30. Rxe4+ {[%clk 0:01:28]}  Kf7 {[%clk 0:01:27]} 31. Rf4 {[%clk 0:01:24]}  Kg8 {[%clk 0:01:21]} 32. Rxf6 {[%clk 0:01:23]}  gxf6 {[%clk 0:01:21]} 33. Qg3+ {[%clk 0:01:21]}  Kh8 {[%clk 0:01:19]} 34. Bxh6 {[%clk 0:01:19]}  Rg8 {[%clk 0:01:18]} 35. Qxg8+ {[%clk 0:01:19]}  Kxg8 {[%clk 0:01:18]} 36. a3 {[%clk 0:01:19]}  Kf7 {[%clk 0:01:19]} 37. Bf4 {[%clk 0:01:18]}  c6 {[%clk 0:01:18]} 38. a4 {[%clk 0:01:18]}  Ke6 {[%clk 0:01:18]} 39. a5 {[%clk 0:01:17]}  Kd7 {[%clk 0:01:18]} 40. a6 {[%clk 0:01:15]}  Kc8 {[%clk 0:01:19]} 41. h4 {[%clk 0:01:13]}  Kd7 {[%clk 0:01:18]} 42. h5 {[%clk 0:01:12]}  Ke6 {[%clk 0:01:19]} 43. a7 {[%clk 0:01:12]} 1-0


[Site "https://www.chess.com"]

[Event "Titled Tuesday Blitz March 21 Late 2023"]
[White "Foerster-Yialamas, Lucas"]
[Black "Manu_ChessExcelsior"]
[WhiteFideId "30901774"]
[WhiteElo "2067"]
[BlackElo "2043"]
[Result "1-0"]
[Round "02"]
[TimeControl "180+2"]
[Date "2023.03.21"]
[WhiteClock "0:01:02"]
[BlackClock "0:00:01"]

1. g4 {[%clk 0:03:00]}  d5 {[%clk 0:02:55]} 2. g5 {[%clk 0:03:00]}  e5 {[%clk 0:02:55]} 3. h4 {[%clk 0:02:58]}  Nc6 {[%clk 0:02:54]} 4. Bg2 {[%clk 0:02:57]}  Be6 {[%clk 0:02:54]} 5. a3 {[%clk 0:02:53]}  Qd7 {[%clk 0:02:54]} 6. b4 {[%clk 0:02:53]}  Bd6 {[%clk 0:02:51]} 7. Nc3 {[%clk 0:02:50]}  Nge7 {[%clk 0:02:49]} 8. e3 {[%clk 0:02:51]}  a6 {[%clk 0:02:48]} 9. Nge2 {[%clk 0:02:50]}  h6 {[%clk 0:02:41]} 10. f4 {[%clk 0:02:35]}  hxg5 {[%clk 0:02:28]} 11. fxg5 {[%clk 0:02:35]}  O-O-O {[%clk 0:02:00]} 12. b5 {[%clk 0:02:33]}  axb5 {[%clk 0:01:54]} 13. Nxb5 {[%clk 0:02:34]}  Bg4 {[%clk 0:01:48]} 14. c4 {[%clk 0:02:31]}  e4 {[%clk 0:01:23]} 15. Qa4 {[%clk 0:02:29]}  Qf5 {[%clk 0:01:00]} 16. cxd5 {[%clk 0:02:07]}  Nxd5 {[%clk 0:00:37]} 17. Qxe4 {[%clk 0:02:07]}  Qe5 {[%clk 0:00:25]} 18. Qxg4+ {[%clk 0:02:03]}  Kb8 {[%clk 0:00:25]} 19. d4 {[%clk 0:02:02]}  Qe6 {[%clk 0:00:12]} 20. Qxe6 {[%clk 0:02:01]}  fxe6 {[%clk 0:00:13]} 21. Rb1 {[%clk 0:01:58]}  Be7 {[%clk 0:00:10]} 22. Nec3 {[%clk 0:01:56]}  Nb6 {[%clk 0:00:09]} 23. a4 {[%clk 0:01:52]}  Na5 {[%clk 0:00:08]} 24. Bd2 {[%clk 0:01:48]}  Nbc4 {[%clk 0:00:08]} 25. Ne4 {[%clk 0:01:40]}  c6 {[%clk 0:00:06]} 26. h5 {[%clk 0:01:05]}  cxb5 {[%clk 0:00:05]} 27. Rxb5 {[%clk 0:01:06]}  Nd6 {[%clk 0:00:04]} 28. Nxd6 {[%clk 0:01:02]}  Bxd6 {[%clk 0:00:04]} 29. Bxa5 {[%clk 0:01:03]}  Bg3+ {[%clk 0:00:04]} 30. Ke2 {[%clk 0:01:03]}  Rd7 {[%clk 0:00:04]} 31. Bc6 {[%clk 0:01:03]}  Rc7 {[%clk 0:00:03]} 32. Bxc7+ {[%clk 0:01:03]}  Bxc7 {[%clk 0:00:03]} 33. Rxb7+ {[%clk 0:01:03]}  Kc8 {[%clk 0:00:03]} 34. Rc1 {[%clk 0:01:03]}  Kd8 {[%clk 0:00:03]} 35. Be4 {[%clk 0:01:04]}  Bd6 {[%clk 0:00:03]} 36. Rc6 {[%clk 0:01:03]}  Bg3 {[%clk 0:00:01]} 37. Ra6 {[%clk 0:01:02]} 1-0


[Site "https://www.chess.com"]

[Event "Titled Tuesday Blitz March 21 Late 2023"]
[White "Kovalevsky, Stanislav"]
[Black "Maranhao,Jose Renato Ruiz"]
[WhiteFideId "13508598"]
[BlackFideId "2135175"]
[WhiteElo "2174"]
[BlackElo "1970"]
[Result "1-0"]
[Round "02"]
[TimeControl "180+2"]
[Date "2023.03.21"]
[WhiteClock "0:00:30"]
[BlackClock "0:00:03"]

1. c4 {[%clk 0:03:00]}  g6 {[%clk 0:02:59]} 2. Nc3 {[%clk 0:03:01]}  Bg7 {[%clk 0:03:00]} 3. g3 {[%clk 0:03:02]}  Nf6 {[%clk 0:02:51]} 4. Bg2 {[%clk 0:03:02]}  e6 {[%clk 0:02:50]} 5. e4 {[%clk 0:03:02]}  d6 {[%clk 0:02:35]} 6. Nge2 {[%clk 0:03:01]}  Nbd7 {[%clk 0:02:29]} 7. O-O {[%clk 0:02:59]}  Rb8 {[%clk 0:02:24]} 8. d4 {[%clk 0:02:55]}  b6 {[%clk 0:02:23]} 9. f4 {[%clk 0:02:43]}  e5 {[%clk 0:02:06]} 10. dxe5 {[%clk 0:02:20]}  dxe5 {[%clk 0:02:06]} 11. fxe5 {[%clk 0:02:21]}  Nxe5 {[%clk 0:02:05]} 12. Qxd8+ {[%clk 0:02:21]}  Kxd8 {[%clk 0:02:05]} 13. Bg5 {[%clk 0:02:20]}  Nxc4 {[%clk 0:01:25]} 14. Rxf6 {[%clk 0:02:02]}  Ke8 {[%clk 0:00:57]} 15. Rc6 {[%clk 0:01:50]}  Nxb2 {[%clk 0:00:27]} 16. Rxc7 {[%clk 0:01:46]}  Ba6 {[%clk 0:00:21]} 17. Rxa7 {[%clk 0:01:28]}  Bd3 {[%clk 0:00:13]} 18. Be7 {[%clk 0:01:05]}  Rc8 {[%clk 0:00:04]} 19. Ba3 {[%clk 0:00:41]}  Nc4 {[%clk 0:00:03]} 20. Bb4 {[%clk 0:00:40]}  b5 {[%clk 0:00:03]} 21. Rd1 {[%clk 0:00:33]}  Bc2 {[%clk 0:00:03]} 22. Re7+ {[%clk 0:00:32]}  Kf8 {[%clk 0:00:02]} 23. Rc7+ {[%clk 0:00:32]}  Kg8 {[%clk 0:00:02]} 24. Rxc8+ {[%clk 0:00:32]}  Bf8 {[%clk 0:00:03]} 25. Bxf8 {[%clk 0:00:30]} 1-0


[Site "https://www.chess.com"]

[Event "Titled Tuesday Blitz March 21 Late 2023"]
[White "Szente Varga, Fruzsina"]
[Black "Vargas Pereda, Jesus Manue"]
[WhiteFideId "712264"]
[BlackFideId "5115710"]
[WhiteElo "1994"]
[BlackElo "1914"]
[Result "1-0"]
[Round "02"]
[TimeControl "180+2"]
[Date "2023.03.21"]
[WhiteClock "0:00:26"]
[BlackClock "0:01:20"]

1. e4 {[%clk 0:03:00]}  c6 {[%clk 0:02:58]} 2. d4 {[%clk 0:03:00]}  d5 {[%clk 0:02:57]} 3. exd5 {[%clk 0:03:01]}  cxd5 {[%clk 0:02:56]} 4. Bd3 {[%clk 0:03:01]}  Nc6 {[%clk 0:02:56]} 5. c3 {[%clk 0:03:01]}  Nf6 {[%clk 0:02:57]} 6. Ne2 {[%clk 0:03:01]}  Bg4 {[%clk 0:02:57]} 7. O-O {[%clk 0:02:58]}  e6 {[%clk 0:02:57]} 8. Bf4 {[%clk 0:02:58]}  Bd6 {[%clk 0:02:56]} 9. Bxd6 {[%clk 0:02:58]}  Qxd6 {[%clk 0:02:56]} 10. Nd2 {[%clk 0:02:58]}  O-O {[%clk 0:02:53]} 11. Qc2 {[%clk 0:02:57]}  Rac8 {[%clk 0:02:50]} 12. a3 {[%clk 0:02:57]}  Bh5 {[%clk 0:02:44]} 13. Ng3 {[%clk 0:02:56]}  Bg6 {[%clk 0:02:44]} 14. Bxg6 {[%clk 0:02:57]}  hxg6 {[%clk 0:02:45]} 15. Nf3 {[%clk 0:02:56]}  Qc7 {[%clk 0:02:43]} 16. Qd3 {[%clk 0:02:46]}  Rb8 {[%clk 0:02:42]} 17. h4 {[%clk 0:02:42]}  b5 {[%clk 0:02:42]} 18. Ng5 {[%clk 0:02:32]}  a5 {[%clk 0:02:39]} 19. Qf3 {[%clk 0:02:24]}  b4 {[%clk 0:02:33]} 20. axb4 {[%clk 0:02:24]}  axb4 {[%clk 0:02:32]} 21. h5 {[%clk 0:02:24]}  bxc3 {[%clk 0:02:26]} 22. bxc3 {[%clk 0:02:19]}  Rb3 {[%clk 0:02:11]} 23. hxg6 {[%clk 0:02:07]}  Nxd4 {[%clk 0:02:10]} 24. gxf7+ {[%clk 0:02:08]}  Rxf7 {[%clk 0:02:09]} 25. Qd1 {[%clk 0:02:08]}  Rxc3 {[%clk 0:02:07]} 26. Nxf7 {[%clk 0:01:51]}  Rxg3 {[%clk 0:02:01]} 27. Qxd4 {[%clk 0:01:35]}  Rg4 {[%clk 0:01:54]} 28. Qd3 {[%clk 0:01:18]}  Qxf7 {[%clk 0:01:54]} 29. Ra8+ {[%clk 0:01:18]}  Ne8 {[%clk 0:01:50]} 30. Rb1 {[%clk 0:01:00]}  Rc4 {[%clk 0:01:36]} 31. Qf3 {[%clk 0:00:37]}  Qg6 {[%clk 0:01:27]} 32. Re1 {[%clk 0:00:26]}  Kh7 {[%clk 0:01:26]} 33. Qh3+ {[%clk 0:00:25]}  Kg8 {[%clk 0:01:24]} 34. Qxe6+ {[%clk 0:00:25]}  Qxe6 {[%clk 0:01:21]} 35. Rxe6 {[%clk 0:00:26]}  Rc1+ {[%clk 0:01:20]} 36. Kh2 {[%clk 0:00:27]}  Kf7 {[%clk 0:01:20]} 37. Raxe8 {[%clk 0:00:27]}  d4 {[%clk 0:01:20]} 38. R8e7+ {[%clk 0:00:27]}  Kg8 {[%clk 0:01:20]} 39. Rd7 {[%clk 0:00:27]}  d3 {[%clk 0:01:20]} 40. Rxd3 {[%clk 0:00:27]}  Rc2 {[%clk 0:01:20]} 41. Rf3 {[%clk 0:00:26]} 1-0


[Site "https://www.chess.com"]

[Event "Titled Tuesday Blitz March 21 Late 2023"]
[White "Erigaisi Arjun"]
[Black "Urazayev, Arystanbek"]
[WhiteFideId "35009192"]
[BlackFideId "13709810"]
[WhiteElo "2737"]
[BlackElo "2479"]
[Result "0-1"]
[Round "03"]
[TimeControl "180+2"]
[Date "2023.03.21"]
[WhiteClock "0:00:04"]
[BlackClock "0:00:05"]

1. b3 {[%clk 0:03:00]}  d5 {[%clk 0:02:59]} 2. Bb2 {[%clk 0:03:00]}  Nf6 {[%clk 0:02:59]} 3. Nf3 {[%clk 0:03:00]}  e6 {[%clk 0:03:00]} 4. g3 {[%clk 0:03:00]}  Be7 {[%clk 0:03:00]} 5. Bg2 {[%clk 0:03:00]}  O-O {[%clk 0:03:01]} 6. O-O {[%clk 0:03:01]}  b6 {[%clk 0:03:02]} 7. c4 {[%clk 0:03:01]}  Bb7 {[%clk 0:03:02]} 8. e3 {[%clk 0:03:02]}  dxc4 {[%clk 0:03:01]} 9. bxc4 {[%clk 0:03:02]}  c5 {[%clk 0:03:00]} 10. Qe2 {[%clk 0:03:03]}  Be4 {[%clk 0:02:55]} 11. Ne5 {[%clk 0:03:00]}  Bxg2 {[%clk 0:02:54]} 12. Kxg2 {[%clk 0:03:01]}  Qc7 {[%clk 0:02:45]} 13. d3 {[%clk 0:02:54]}  Nc6 {[%clk 0:02:41]} 14. f4 {[%clk 0:02:50]}  Nxe5 {[%clk 0:02:37]} 15. fxe5 {[%clk 0:02:48]}  Nd7 {[%clk 0:02:38]} 16. d4 {[%clk 0:02:48]}  b5 {[%clk 0:01:58]} 17. cxb5 {[%clk 0:02:43]}  cxd4 {[%clk 0:01:58]} 18. exd4 {[%clk 0:02:43]}  Nb6 {[%clk 0:01:56]} 19. Nc3 {[%clk 0:02:38]}  Rac8 {[%clk 0:01:50]} 20. Rac1 {[%clk 0:02:36]}  Qc4 {[%clk 0:01:47]} 21. Rf2 {[%clk 0:01:51]}  Qxd4 {[%clk 0:01:36]} 22. Ne4 {[%clk 0:01:51]}  Qd5 {[%clk 0:01:36]} 23. Rxc8 {[%clk 0:01:48]}  Rxc8 {[%clk 0:01:32]} 24. Qf3 {[%clk 0:01:40]}  Rf8 {[%clk 0:01:32]} 25. Bc3 {[%clk 0:01:18]}  Qxb5 {[%clk 0:01:22]} 26. Nf6+ {[%clk 0:01:13]}  Bxf6 {[%clk 0:01:22]} 27. exf6 {[%clk 0:01:14]}  g6 {[%clk 0:01:23]} 28. Qe3 {[%clk 0:01:08]}  Qd5+ {[%clk 0:01:10]} 29. Rf3 {[%clk 0:01:08]}  Qh5 {[%clk 0:01:07]} 30. Qd4 {[%clk 0:00:51]}  Nd5 {[%clk 0:01:01]} 31. Bd2 {[%clk 0:00:50]}  g5 {[%clk 0:00:43]} 32. Qxa7 {[%clk 0:00:40]}  Rd8 {[%clk 0:00:37]} 33. Rf2 {[%clk 0:00:32]}  Qg6 {[%clk 0:00:31]} 34. Kg1 {[%clk 0:00:23]}  Qb1+ {[%clk 0:00:20]} 35. Rf1 {[%clk 0:00:20]}  Qe4 {[%clk 0:00:12]} 36. Bxg5 {[%clk 0:00:19]}  Rc8 {[%clk 0:00:13]} 37. Qf2 {[%clk 0:00:13]}  h6 {[%clk 0:00:12]} 38. Rc1 {[%clk 0:00:10]}  Ra8 {[%clk 0:00:07]} 39. Bxh6 {[%clk 0:00:08]}  Kh7 {[%clk 0:00:06]} 40. Bg5 {[%clk 0:00:08]}  Ra3 {[%clk 0:00:06]} 41. h4 {[%clk 0:00:07]}  Rf3 {[%clk 0:00:06]} 42. Qe1 {[%clk 0:00:04]}  Qg4 {[%clk 0:00:05]} 43. Kh2 {[%clk 0:00:04]}  Ra3 {[%clk 0:00:05]} 44. Rc2 {[%clk 0:00:04]}  Nb4 {[%clk 0:00:05]} 45. Re2 {[%clk 0:00:03]}  Nd3 {[%clk 0:00:05]} 46. Qd2 {[%clk 0:00:04]}  Ne5 {[%clk 0:00:04]} 47. Rxe5 {[%clk 0:00:03]}  Qxg3+ {[%clk 0:00:05]} 48. Kh1 {[%clk 0:00:03]}  Qh3+ {[%clk 0:00:04]} 49. Kg1 {[%clk 0:00:03]}  Rg3+ {[%clk 0:00:04]} 50. Kf2 {[%clk 0:00:03]}  Rg2+ {[%clk 0:00:05]} 51. Ke1 {[%clk 0:00:04]}  Qh1# {[%clk 0:00:05]} 0-1


[Site "https://www.chess.com"]

[Event "Titled Tuesday Blitz March 21 Late 2023"]
[White "Bordi, Kevin"]
[Black "Fedoseev, Vladimir"]
[WhiteFideId "621862"]
[BlackFideId "24130737"]
[WhiteElo "2814"]
[BlackElo "2752"]
[Result "0-1"]
[Round "03"]
[TimeControl "180+2"]
[Date "2023.03.21"]
[WhiteClock "0:01:36"]
[BlackClock "0:01:49"]

1. d4 {[%clk 0:03:00]}  d5 {[%clk 0:02:53]} 2. Bf4 {[%clk 0:03:00]}  c6 {[%clk 0:02:54]} 3. e3 {[%clk 0:03:00]}  Bf5 {[%clk 0:02:53]} 4. c4 {[%clk 0:03:00]}  e6 {[%clk 0:02:53]} 5. Nc3 {[%clk 0:03:00]}  Nd7 {[%clk 0:02:53]} 6. Qb3 {[%clk 0:03:00]}  Qb6 {[%clk 0:02:51]} 7. c5 {[%clk 0:03:01]}  Qxb3 {[%clk 0:02:51]} 8. axb3 {[%clk 0:03:02]}  a6 {[%clk 0:02:52]} 9. b4 {[%clk 0:03:02]}  Rc8 {[%clk 0:02:52]} 10. Nf3 {[%clk 0:03:03]}  Be7 {[%clk 0:02:52]} 11. Nd2 {[%clk 0:03:02]}  Bd8 {[%clk 0:02:53]} 12. Nb3 {[%clk 0:03:01]}  Bc7 {[%clk 0:02:25]} 13. Bxc7 {[%clk 0:02:59]}  Rxc7 {[%clk 0:02:26]} 14. Kd2 {[%clk 0:02:58]}  e5 {[%clk 0:02:16]} 15. Bd3 {[%clk 0:02:58]}  Be6 {[%clk 0:02:15]} 16. f4 {[%clk 0:02:54]}  f6 {[%clk 0:02:08]} 17. fxe5 {[%clk 0:02:20]}  fxe5 {[%clk 0:02:08]} 18. dxe5 {[%clk 0:02:21]}  Nxe5 {[%clk 0:02:06]} 19. Nd4 {[%clk 0:02:22]}  Ke7 {[%clk 0:02:06]} 20. Nce2 {[%clk 0:02:10]}  Nxd3 {[%clk 0:01:58]} 21. Kxd3 {[%clk 0:02:09]}  Nf6 {[%clk 0:01:59]} 22. Nxe6 {[%clk 0:02:06]}  Kxe6 {[%clk 0:01:59]} 23. Nd4+ {[%clk 0:02:07]}  Kf7 {[%clk 0:01:59]} 24. Rhf1 {[%clk 0:02:04]}  Re8 {[%clk 0:01:59]} 25. Rf3 {[%clk 0:02:03]}  Kg8 {[%clk 0:01:59]} 26. Raf1 {[%clk 0:02:00]}  Ng4 {[%clk 0:01:59]} 27. Ne6 {[%clk 0:01:39]}  Ne5+ {[%clk 0:01:52]} 28. Ke2 {[%clk 0:01:36]}  Rcc8 {[%clk 0:01:49]} 0-1


[Site "https://www.chess.com"]

[Event "Titled Tuesday Blitz March 21 Late 2023"]
[White "Bluebaum, Matthias"]
[Black "Albornoz Cabrera, Carlos Daniel"]
[WhiteFideId "24651516"]
[BlackFideId "3518736"]
[WhiteElo "2638"]
[BlackElo "2501"]
[Result "1/2-1/2"]
[Round "03"]
[TimeControl "180+2"]
[Date "2023.03.21"]
[WhiteClock "0:01:22"]
[BlackClock "0:01:26"]

1. d4 {[%clk 0:03:00]}  Nf6 {[%clk 0:03:00]} 2. c4 {[%clk 0:03:01]}  g6 {[%clk 0:03:00]} 3. Nc3 {[%clk 0:03:01]}  Bg7 {[%clk 0:03:00]} 4. e4 {[%clk 0:03:02]}  d6 {[%clk 0:03:00]} 5. Nf3 {[%clk 0:03:03]}  Bg4 {[%clk 0:03:00]} 6. Be2 {[%clk 0:03:03]}  O-O {[%clk 0:03:00]} 7. Be3 {[%clk 0:03:03]}  Nfd7 {[%clk 0:03:00]} 8. h4 {[%clk 0:03:04]}  e5 {[%clk 0:02:50]} 9. d5 {[%clk 0:03:03]}  Nf6 {[%clk 0:02:45]} 10. Nd2 {[%clk 0:02:57]}  Bxe2 {[%clk 0:02:44]} 11. Qxe2 {[%clk 0:02:58]}  Nh5 {[%clk 0:02:44]} 12. g3 {[%clk 0:02:54]}  a6 {[%clk 0:02:38]} 13. c5 {[%clk 0:02:51]}  Nd7 {[%clk 0:02:32]} 14. cxd6 {[%clk 0:02:51]}  cxd6 {[%clk 0:02:33]} 15. a4 {[%clk 0:02:46]}  Rc8 {[%clk 0:02:31]} 16. O-O {[%clk 0:02:45]}  Nc5 {[%clk 0:01:54]} 17. b4 {[%clk 0:02:38]}  Nb3 {[%clk 0:01:43]} 18. Nxb3 {[%clk 0:02:38]}  Rxc3 {[%clk 0:01:43]} 19. Na5 {[%clk 0:02:39]}  Qd7 {[%clk 0:01:38]} 20. Qd2 {[%clk 0:02:20]}  Qh3 {[%clk 0:01:32]} 21. Qxc3 {[%clk 0:01:18]}  Nxg3 {[%clk 0:01:27]} 22. fxg3 {[%clk 0:01:19]}  Qxg3+ {[%clk 0:01:28]} 23. Kh1 {[%clk 0:01:20]}  Qh3+ {[%clk 0:01:25]} 24. Kg1 {[%clk 0:01:21]}  Qg3+ {[%clk 0:01:25]} 25. Kh1 {[%clk 0:01:21]}  Qh3+ {[%clk 0:01:25]} 26. Kg1 {[%clk 0:01:22]}  Qg3+ {[%clk 0:01:26]} 1/2-1/2


[Site "https://www.chess.com"]

[Event "Titled Tuesday Blitz March 21 Late 2023"]
[White "Bolourchifard, Farzad"]
[Black "Van Foreest, Jorden"]
[WhiteFideId "12510084"]
[BlackFideId "1039784"]
[WhiteElo "2317"]
[BlackElo "2633"]
[Result "0-1"]
[Round "03"]
[TimeControl "180+2"]
[Date "2023.03.21"]
[WhiteClock "0:00:40"]
[BlackClock "0:01:39"]

1. e4 {[%clk 0:03:00]}  c5 {[%clk 0:02:59]} 2. Nc3 {[%clk 0:03:01]}  Nc6 {[%clk 0:02:58]} 3. g3 {[%clk 0:03:01]}  e6 {[%clk 0:02:50]} 4. Bg2 {[%clk 0:03:01]}  Nf6 {[%clk 0:02:50]} 5. Nge2 {[%clk 0:03:02]}  d5 {[%clk 0:02:50]} 6. exd5 {[%clk 0:03:02]}  exd5 {[%clk 0:02:50]} 7. d4 {[%clk 0:03:03]}  cxd4 {[%clk 0:02:50]} 8. Nxd4 {[%clk 0:03:03]}  Bg4 {[%clk 0:02:51]} 9. f3 {[%clk 0:03:03]}  Bd7 {[%clk 0:02:47]} 10. O-O {[%clk 0:03:02]}  Be7 {[%clk 0:02:45]} 11. Kh1 {[%clk 0:02:52]}  O-O {[%clk 0:02:44]} 12. Nce2 {[%clk 0:02:44]}  Re8 {[%clk 0:02:41]} 13. b3 {[%clk 0:02:41]}  Bc5 {[%clk 0:02:35]} 14. Bb2 {[%clk 0:02:41]}  Rc8 {[%clk 0:02:28]} 15. Nxc6 {[%clk 0:02:40]}  bxc6 {[%clk 0:02:26]} 16. Nf4 {[%clk 0:02:20]}  Be3 {[%clk 0:02:20]} 17. Nd3 {[%clk 0:02:20]}  c5 {[%clk 0:02:11]} 18. Ne5 {[%clk 0:02:16]}  d4 {[%clk 0:02:10]} 19. Nxd7 {[%clk 0:02:13]}  Qxd7 {[%clk 0:02:10]} 20. Qd3 {[%clk 0:02:07]}  h5 {[%clk 0:02:09]} 21. Rad1 {[%clk 0:02:03]}  h4 {[%clk 0:02:08]} 22. Rfe1 {[%clk 0:01:12]}  hxg3 {[%clk 0:02:08]} 23. hxg3 {[%clk 0:01:12]}  Re5 {[%clk 0:01:49]} 24. g4 {[%clk 0:00:55]}  Nxg4 {[%clk 0:01:39]} 25. fxg4 {[%clk 0:00:54]}  Qxg4 {[%clk 0:01:40]} 26. Rxe3 {[%clk 0:00:42]}  Rxe3 {[%clk 0:01:41]} 27. Qd2 {[%clk 0:00:40]}  Re2 {[%clk 0:01:39]} 0-1


[Site "https://www.chess.com"]